bitfinex/quotes_BTCUSD_20250908
["timestamp","ask_amount","ask_price","bid_price","bid_amount"]
[1757336895145,0.17960896,112290.0,112280.0,1.07231551]
[1757336897629,0.17960896,112290.0,112280.0,0.91187551]
[1757336897826,0.17960896,112290.0,112280.0,1.07183551]
[1757336900243,0.17960896,112290.0,112280.0,6.07183551]
[1757336902026,0.17399618,112290.0,112280.0,6.45388551]
[1757336902244,0.09759093,112290.0,112280.0,6.45388551]
[1757336903545,0.09659093,112290.0,112280.0,6.45388551]
[1757336903784,0.09659093,112290.0,112280.0,6.25436551]
[1757336904007,0.18121439,112300.0,112290.0,0.61093882]
[1757336904235,0.24284644,112310.0,112300.0,0.2]
[1757336904449,0.24284644,112310.0,112300.0,6.04800599]
[1757336904647,0.42092497,112310.0,112300.0,5.96431509]
[1757336905002,0.42092497,112310.0,112300.0,6.07463509]
[1757336905408,0.42092497,112310.0,112300.0,5.91431509]
[1757336905613,0.41202195,112310.0,112300.0,5.92226509]
[1757336905828,0.41202195,112310.0,112300.0,6.05344391]
[1757336906028,0.41202195,112310.0,112300.0,6.09320391]
[1757336906213,0.41202195,112310.0,112300.0,6.25340391]
[1757336906418,0.41202195,112310.0,112300.0,1.25340391]
[1757336906767,0.41302195,112310.0,112300.0,1.25340391]
[1757336907289,0.41302195,112310.0,112300.0,1.09320391]
[1757336907544,0.41302195,112310.0,112300.0,1.07226509]
[1757336907798,0.41830195,112310.0,112300.0,1.07226509]
[1757336908060,0.41830195,112310.0,112300.0,0.89226509]
[1757336908280,0.41930195,112310.0,112300.0,1.07226509]
[1757336908510,0.41930195,112310.0,112300.0,1.23226509]
[1757336909789,0.41402195,112310.0,112300.0,1.25320391]
[1757336910628,0.41402195,112310.0,112300.0,6.25320391]
[1757336913556,0.39402195,112310.0,112300.0,6.27105391]
[1757336914500,0.39402195,112310.0,112300.0,6.35105391]
[1757336915580,0.39402195,112310.0,112300.0,5.94105391]
[1757336915792,0.39930195,112310.0,112300.0,6.17011509]
[1757336916005,0.39930195,112310.0,112300.0,6.32971509]
[1757336916419,0.39725195,112310.0,112300.0,6.32971509]
[1757336917878,0.39402195,112310.0,112300.0,6.32971509]
[1757336918486,0.39402195,112310.0,112300.0,6.31186509]
[1757336919116,0.39930195,112310.0,112300.0,6.31206509]
[1757336919426,0.39725195,112310.0,112300.0,6.31206509]
[1757336920642,0.39930195,112310.0,112300.0,6.31206509]
[1757336921158,0.38930195,112310.0,112300.0,6.38042509]
[1757336921572,0.38402195,112310.0,112300.0,6.38042509]
[1757336924862,0.38725195,112310.0,112300.0,6.38042509]
[1757336925126,0.38402195,112310.0,112300.0,6.38042509]
[1757336926509,0.38725195,112310.0,112300.0,6.38042509]
[1757336926718,0.38402195,112310.0,112300.0,6.38042509]
[1757336927149,0.38402195,112310.0,112300.0,6.38006509]
[1757336927885,0.38725195,112310.0,112300.0,6.38006509]
[1757336928419,0.38402195,112310.0,112300.0,6.38006509]
[1757336930375,0.38725195,112310.0,112300.0,6.38006509]
[1757336930707,0.38402195,112310.0,112300.0,6.38006509]
[1757336931124,0.38717195,112310.0,112300.0,6.38006509]
[1757336931333,0.38917195,112310.0,112300.0,6.38006509]
[1757336931543,0.38402195,112310.0,112300.0,6.38006509]
[1757336931961,0.38402195,112310.0,112300.0,6.22062509]
[1757336932216,0.38917195,112310.0,112300.0,6.22062509]
[1757336932462,0.74871545,112310.0,112300.0,0.98994509]
[1757336932676,0.38917195,112310.0,112300.0,0.6981891]
[1757336932884,0.74871545,112310.0,112300.0,0.67148]
[1757336934581,0.74871545,112310.0,112300.0,0.67136]
[1757336935849,0.74871545,112310.0,112300.0,0.69808043]
[1757336937828,0.38917195,112310.0,112300.0,0.69808043]
[1757336938303,0.38917195,112310.0,112300.0,0.78999642]
[1757336938517,0.38717195,112310.0,112300.0,0.78999642]
[1757336939804,0.38917195,112310.0,112300.0,0.78999642]
[1757336940659,0.38717195,112310.0,112300.0,0.78999642]
[1757336941077,0.38917195,112310.0,112300.0,0.78999642]
[1757336941499,0.38402195,112310.0,112300.0,1.17999642]
[1757336944306,0.38717195,112310.0,112300.0,1.17999642]
[1757336944507,0.38917195,112310.0,112300.0,1.17999642]
[1757336944721,0.38917195,112310.0,112300.0,1.17987642]
[1757336945171,0.38917195,112310.0,112300.0,1.44307642]
[1757336950534,0.38717195,112310.0,112300.0,1.44307642]
[1757336953457,0.38917195,112310.0,112300.0,1.44307642]
[1757336954586,0.38402195,112310.0,112300.0,1.44307642]
[1757336954803,0.38717195,112310.0,112300.0,6.44307642]
[1757336955652,0.38917195,112310.0,112300.0,6.44307642]
[1757336958343,0.74871545,112310.0,112300.0,1.32963642]
[1757336958547,0.74871545,112310.0,112300.0,1.21092]
[1757336958982,0.38917195,112310.0,112300.0,1.21092]
[1757336959197,0.74871545,112310.0,112300.0,1.21092]
[1757336960438,0.38917195,112310.0,112300.0,1.21092]
[1757336960646,0.74871545,112310.0,112300.0,1.21092]
[1757336961511,0.74871545,112310.0,112300.0,1.23763895]
[1757336962732,0.74871545,112310.0,112300.0,1.07871895]
[1757336962966,0.74871545,112310.0,112300.0,1.23759895]
[1757336963171,0.38917195,112310.0,112300.0,1.23759895]
[1757336963374,0.74871545,112310.0,112300.0,1.23759895]
[1757336964114,0.74371545,112310.0,112300.0,1.23759895]
[1757336965051,0.38417195,112310.0,112300.0,1.23759895]
[1757336965255,0.74371545,112310.0,112300.0,1.23759895]
[1757336965976,0.74371545,112310.0,112300.0,0.72088]
[1757336967101,0.17809439,112300.0,112290.0,0.02672012]
[1757336967375,0.17811025,112290.0,112280.0,8.381e-05]
[1757336967633,0.53969375,112290.0,112280.0,0.22728381]
[1757336968034,0.54286375,112290.0,112280.0,0.22728381]
[1757336969316,0.18332025,112290.0,112280.0,0.22728381]
[1757336969742,0.54286375,112290.0,112280.0,0.22728381]
[1757336970171,0.54386375,112290.0,112280.0,0.22728381]
[1757336970381,0.90340725,112290.0,112280.0,0.22728381]
[1757336970584,0.90240725,112290.0,112280.0,0.22728381]
[1757336971950,0.90340725,112290.0,112280.0,0.22728381]
[1757336972613,0.17812611,112280.0,112270.0,0.21364]
[1757336972854,0.90203633,112280.0,112270.0,0.2821242]
[1757336973078,0.90242311,112280.0,112270.0,0.2821242]
[1757336973749,0.90242311,112280.0,112270.0,0.4821242]
[1757336973945,0.90242311,112280.0,112270.0,0.6408042]
[1757336974369,0.90242311,112280.0,112270.0,0.4271642]
[1757336974584,0.90242311,112280.0,112270.0,0.2271642]
[1757336974986,0.90342311,112280.0,112270.0,0.2271642]
[1757336975197,0.17815784,112260.0,112250.0,0.09737988]
[1757336975423,0.90002855,112260.0,112250.0,0.23139232]
[1757336975639,0.90245484,112260.0,112250.0,0.23139232]
[1757336975859,0.90245484,112260.0,112250.0,0.1607802]
[1757336976065,0.90245484,112260.0,112250.0,0.06886421]
[1757336976329,0.90245484,112260.0,112250.0,0.22758421]
[1757336976543,0.54291134,112260.0,112250.0,0.22758421]
[1757336977105,0.90245484,112260.0,112250.0,0.22758421]
[1757336978473,0.54338417,112260.0,112250.0,0.22758421]
[1757336978863,0.9034005,112260.0,112250.0,0.22758421]
[1757336979492,0.54338417,112260.0,112250.0,0.22758421]
[1757336981795,0.18336784,112260.0,112250.0,0.22758421]
[1757336982231,0.54338417,112260.0,112250.0,0.22758421]
[1757336984727,0.18336784,112260.0,112250.0,0.22758421]
[1757336985143,0.54338417,112260.0,112250.0,0.22758421]
[1757336987144,0.18336784,112260.0,112250.0,0.22758421]
[1757336987354,0.18336784,112260.0,112250.0,0.5195002]
[1757336987570,0.18132784,112260.0,112250.0,0.5195002]
[1757336987777,0.18336784,112260.0,112250.0,0.5195002]
[1757336987983,0.18336784,112260.0,112250.0,0.5462287]
[1757336992712,0.18336784,112260.0,112250.0,0.8094287]
[1757336992878,0.18336784,112260.0,112250.0,0.6507087]
[1757336993085,0.18336784,112260.0,112250.0,0.8083887]
[1757336993266,0.18336784,112260.0,112250.0,0.6507087]
[1757336993465,0.18336784,112260.0,112250.0,0.8083887]
[1757336994479,0.18336784,112260.0,112250.0,0.8082687]
[1757336994689,0.18132784,112260.0,112250.0,0.8082687]
[1757336994890,0.18335784,112260.0,112250.0,0.8082687]
[1757336997325,0.18335784,112260.0,112250.0,0.6507087]
[1757336997508,0.18335784,112260.0,112250.0,0.8081087]
[1757336998235,0.18335784,112260.0,112250.0,0.8079487]
[1757336999303,0.18335784,112260.0,112250.0,0.6507087]
[1757336999506,0.18335784,112260.0,112250.0,0.8079487]
[1757337000163,0.54337417,112260.0,112250.0,0.8078287]
[1757337000385,0.54337417,112260.0,112250.0,0.06886421]
[1757337000601,0.9033905,112260.0,112250.0,0.06886421]
[1757337000825,0.22554784,112260.0,112250.0,0.00050421]
[1757337001028,0.9455805,112260.0,112250.0,0.15754421]
[1757337002232,0.9465805,112260.0,112250.0,0.00050421]
[1757337002447,0.9465805,112260.0,112250.0,0.15746421]
[1757337002721,0.9485805,112260.0,112250.0,0.15746421]
[1757337003964,0.9485805,112260.0,112250.0,1e-08]
[1757337004170,0.17818959,112240.0,112230.0,0.0684]
[1757337004372,0.54099013,112240.0,112230.0,0.06852557]
[1757337004586,0.54135592,112240.0,112230.0,0.06852557]
[1757337004872,0.54338592,112240.0,112230.0,0.06852557]
[1757337005321,0.51443006,112240.0,112230.0,0.06852557]
[1757337005526,0.51443006,112240.0,112230.0,0.22532557]
[1757337005741,0.51443006,112240.0,112230.0,0.06852557]
[1757337005957,0.51443006,112240.0,112230.0,0.22524557]
[1757337006381,0.51443006,112240.0,112230.0,0.22624557]
[1757337006670,0.15441373,112240.0,112230.0,0.22624557]
[1757337006885,0.51721427,112240.0,112230.0,0.22524557]
[1757337007088,0.51443006,112240.0,112230.0,0.22524557]
[1757337007500,0.15441373,112240.0,112230.0,0.22524557]
[1757337007696,0.51721427,112240.0,112230.0,0.22624557]
[1757337007925,0.51443006,112240.0,112230.0,0.22624557]
[1757337008254,0.51443006,112240.0,112230.0,0.22524557]
[1757337009967,0.51443006,112240.0,112230.0,0.42524557]
[1757337011283,0.51443006,112240.0,112230.0,0.22524557]
[1757337011942,0.15441373,112240.0,112230.0,0.22524557]
[1757337012178,0.51721427,112240.0,112230.0,0.22524557]
[1757337012321,0.51443006,112240.0,112230.0,0.22524557]
[1757337012730,0.15441373,112240.0,112230.0,0.22524557]
[1757337012937,0.15719794,112240.0,112230.0,0.22524557]
[1757337013137,0.51721427,112240.0,112230.0,0.22524557]
[1757337013312,0.51443006,112240.0,112230.0,0.22524557]
[1757337016076,0.15441373,112240.0,112230.0,0.22524557]
[1757337016282,0.51721427,112240.0,112230.0,0.22524557]
[1757337016503,0.51443006,112240.0,112230.0,0.22524557]
[1757337017072,0.51443006,112240.0,112230.0,0.22624557]
[1757337017679,0.51443006,112240.0,112230.0,0.22524557]
[1757337018085,0.15441373,112240.0,112230.0,0.22524557]
[1757337018291,0.56040427,112240.0,112230.0,0.22524557]
[1757337018492,0.55762006,112240.0,112230.0,0.22524557]
[1757337020016,0.19760373,112240.0,112230.0,0.22524557]
[1757337020264,0.55762006,112240.0,112230.0,0.22524557]
[1757337023423,0.19760373,112240.0,112230.0,0.22524557]
[1757337023645,0.55762006,112240.0,112230.0,0.22524557]
[1757337025617,0.19760373,112240.0,112230.0,0.22524557]
[1757337025827,0.55762006,112240.0,112230.0,0.22524557]
[1757337026039,0.19760373,112240.0,112230.0,0.22524557]
[1757337026254,0.55762006,112240.0,112230.0,0.22524557]
[1757337026669,0.55662006,112240.0,112230.0,0.22524557]
[1757337026905,0.19760373,112240.0,112230.0,0.22524557]
[1757337027116,0.51543006,112240.0,112230.0,0.22524557]
[1757337027262,0.15541373,112240.0,112230.0,0.22524557]
[1757337027474,0.52021427,112240.0,112230.0,0.22524557]
[1757337027860,0.51743006,112240.0,112230.0,0.22524557]
[1757337028066,0.15741373,112240.0,112230.0,0.22524557]
[1757337028288,0.52021427,112240.0,112230.0,0.22524557]
[1757337028493,0.15741373,112240.0,112230.0,0.22524557]
[1757337028706,0.52021427,112240.0,112230.0,0.22524557]
[1757337028915,0.51743006,112240.0,112230.0,0.22524557]
[1757337029412,0.15741373,112240.0,112230.0,0.22524557]
[1757337029668,0.52021427,112240.0,112230.0,0.22524557]
[1757337029874,0.51743006,112240.0,112230.0,0.22524557]
[1757337031815,0.51743006,112240.0,112230.0,0.06852557]
[1757337032020,0.51743006,112240.0,112230.0,0.22384557]
[1757337034395,0.51743006,112240.0,112230.0,0.24165557]
[1757337034615,0.51743006,112240.0,112230.0,0.22384557]
[1757337035034,0.15741373,112240.0,112230.0,0.22384557]
[1757337035238,0.52021427,112240.0,112230.0,0.22384557]
[1757337035446,0.51743006,112240.0,112230.0,0.22384557]
[1757337036452,0.15741373,112240.0,112230.0,0.22384557]
[1757337036649,0.52021427,112240.0,112230.0,0.22384557]
[1757337036961,0.51743006,112240.0,112230.0,0.22384557]
[1757337037906,0.15741373,112240.0,112230.0,0.22384557]
[1757337038106,0.52021427,112240.0,112230.0,0.22384557]
[1757337038315,0.87778279,112240.0,112230.0,0.22384557]
[1757337040191,0.15741373,112240.0,112230.0,0.22384557]
[1757337040414,0.880567,112240.0,112230.0,0.22384557]
[1757337040637,0.87778279,112240.0,112230.0,0.22384557]
[1757337042437,0.15741373,112240.0,112230.0,0.22384557]
[1757337042636,0.880567,112240.0,112230.0,0.22384557]
[1757337042858,0.87778279,112240.0,112230.0,0.22384557]
[1757337046538,0.87778279,112240.0,112230.0,0.22336557]
[1757337047288,0.87778279,112240.0,112230.0,0.42336557]
[1757337047424,0.87778279,112240.0,112230.0,0.42328557]
[1757337047632,0.87778279,112240.0,112230.0,0.42324557]
[1757337047839,0.87778279,112240.0,112230.0,0.26852557]
[1757337048236,0.87778279,112240.0,112230.0,0.42324557]
[1757337048753,0.87778279,112240.0,112230.0,0.26852557]
[1757337048900,0.87778279,112240.0,112230.0,0.42324557]
[1757337050258,0.84882321,112240.0,112230.0,0.42324557]
[1757337050926,0.12845415,112240.0,112230.0,0.42324557]
[1757337051130,0.85160742,112240.0,112230.0,0.42324557]
[1757337051331,0.84882321,112240.0,112230.0,0.42324557]
[1757337051980,0.12845415,112240.0,112230.0,0.42324557]
[1757337052190,0.85160742,112240.0,112230.0,0.42324557]
[1757337052396,0.84882321,112240.0,112230.0,0.42324557]
[1757337053011,0.12845415,112240.0,112230.0,0.42324557]
[1757337053221,0.85160742,112240.0,112230.0,0.42324557]
[1757337053430,0.84882321,112240.0,112230.0,0.42324557]
[1757337054795,0.12845415,112240.0,112230.0,0.42324557]
[1757337055002,0.85160742,112240.0,112230.0,0.42324557]
[1757337055204,0.84882321,112240.0,112230.0,0.42324557]
[1757337056015,0.48863868,112240.0,112230.0,0.42324557]
[1757337056836,0.84882321,112240.0,112230.0,0.42324557]
[1757337059241,0.12845415,112240.0,112230.0,0.42324557]
[1757337059444,0.13123836,112240.0,112230.0,0.42324557]
[1757337059849,0.12920836,112240.0,112230.0,0.42324557]
[1757337061211,0.12605836,112240.0,112230.0,0.42324557]
[1757337061819,0.12605836,112240.0,112230.0,0.51516156]
[1757337061963,0.12327415,112240.0,112230.0,0.51516156]
[1757337062409,0.12327415,112240.0,112230.0,0.77836156]
[1757337063533,0.003,112240.0,112230.0,0.77836156]
[1757337063715,0.18118959,112240.0,112230.0,0.77836156]
[1757337064168,0.001,112240.0,112230.0,5.94336703]
[1757337064382,0.001,112240.0,112230.0,6.34279585]
[1757337064587,0.00054091,112240.0,112230.0,6.36952644]
[1757337065257,0.00054091,112240.0,112230.0,6.44952644]
[1757337065920,0.18706573,112260.0,112250.0,0.35]
[1757337066141,0.18706573,112260.0,112250.0,0.59635599]
[1757337067865,0.18706573,112260.0,112250.0,0.63644066]
[1757337068050,0.19007573,112260.0,112250.0,0.63644066]
[1757337068809,0.18706573,112260.0,112250.0,0.63644066]
[1757337069018,0.18706573,112260.0,112250.0,5.63644066]
[1757337069795,0.18706573,112260.0,112250.0,5.89964066]
[1757337070180,0.18706573,112260.0,112250.0,5.74520066]
[1757337070537,0.18706573,112260.0,112250.0,5.89964066]
[1757337070677,0.17815784,112260.0,112250.0,5.88644066]
[1757337070886,0.17815627,112270.0,112250.0,5.88644066]
[1757337071129,0.17815627,112270.0,112260.0,5.57847599]
[1757337071358,0.5383408,112270.0,112260.0,0.57847599]
[1757337071490,0.5383408,112270.0,112260.0,0.42407599]
[1757337071689,0.5383408,112270.0,112260.0,0.57847599]
[1757337072751,0.5393408,112270.0,112260.0,0.57847599]
[1757337073016,0.17915627,112270.0,112260.0,0.42407599]
[1757337073210,0.5393408,112270.0,112260.0,0.57847599]
[1757337074319,0.5393408,112270.0,112260.0,0.42407599]
[1757337074526,0.5393408,112270.0,112260.0,0.57847599]
[1757337075338,0.5403408,112270.0,112260.0,0.57847599]
[1757337075745,0.18015627,112270.0,112260.0,0.57847599]
[1757337075883,0.5403408,112270.0,112260.0,0.57847599]
[1757337076978,0.5403408,112270.0,112260.0,0.60519987]
[1757337077403,0.5403408,112270.0,112260.0,0.45079987]
[1757337077613,0.5403408,112270.0,112260.0,0.60519987]
[1757337078287,0.18015627,112270.0,112260.0,0.60515987]
[1757337078510,0.5403408,112270.0,112260.0,0.60515987]
[1757337078718,0.5403408,112270.0,112260.0,0.62296987]
[1757337079157,0.5403408,112270.0,112260.0,0.60515987]
[1757337079343,0.002,112270.0,112260.0,6.26778869]
[1757337079577,0.002,112270.0,112260.0,6.00458869]
[1757337080004,0.002,112270.0,112260.0,6.18274653]
[1757337080426,0.001,112270.0,112260.0,6.18274653]
[1757337081082,0.001,112270.0,112260.0,6.18374653]
[1757337081300,0.54620029,112290.0,112260.0,6.18374653]
[1757337081301,0.54620029,112290.0,112280.0,0.35]
[1757337081509,0.54620029,112290.0,112280.0,0.59627599]
[1757337082380,0.18601576,112290.0,112280.0,0.59627599]
[1757337082591,0.54666462,112290.0,112280.0,0.59627599]
[1757337083032,0.54666462,112290.0,112280.0,0.63614958]
[1757337083631,0.18648009,112290.0,112280.0,0.63614958]
[1757337085595,0.18648009,112290.0,112280.0,0.64521674]
[1757337087713,0.00046433,112290.0,112280.0,5.90841674]
[1757337087892,0.17857458,112290.0,112280.0,5.90841674]
[1757337089474,0.17857458,112290.0,112280.0,5.93513638]
[1757337089706,0.17857458,112290.0,112280.0,5.93613638]
[1757337090093,0.17857458,112290.0,112280.0,5.93713638]
[1757337090326,0.17857458,112290.0,112280.0,5.93613638]
[1757337090716,0.17857458,112290.0,112280.0,5.93513638]
[1757337090980,0.17857458,112290.0,112280.0,5.93613638]
[1757337091224,0.00046433,112290.0,112280.0,6.27613638]
[1757337091467,0.17857458,112290.0,112280.0,6.27713638]
[1757337093545,0.00046433,112290.0,112280.0,6.27713638]
[1757337093790,0.17857458,112290.0,112280.0,6.27713638]
[1757337094072,0.00046433,112290.0,112280.0,6.27713638]
[1757337094493,0.00046433,112290.0,112280.0,6.52620131]
[1757337094706,0.00046433,112290.0,112280.0,6.3874552]
[1757337095059,0.00046433,112290.0,112280.0,6.56558131]
[1757337096337,0.00046433,112290.0,112280.0,6.56546131]
[1757337100770,0.00046433,112290.0,112280.0,6.56542131]
[1757337100955,0.00046433,112290.0,112280.0,6.51122131]
[1757337101167,0.00046433,112290.0,112280.0,6.66542131]
[1757337101375,0.00046433,112290.0,112280.0,6.66442131]
[1757337102135,0.00046433,112290.0,112280.0,6.68223131]
[1757337102531,0.00046433,112290.0,112280.0,6.68323131]
[1757337103797,0.00046433,112290.0,112280.0,6.68223131]
[1757337103982,0.00046433,112290.0,112280.0,6.52803131]
[1757337104200,0.00046433,112290.0,112280.0,6.68323131]
[1757337104835,0.00046433,112290.0,112280.0,6.68123131]
[1757337105191,0.00046433,112290.0,112280.0,6.52703131]
[1757337105437,0.00046433,112290.0,112280.0,6.53003131]
[1757337105638,0.00046433,112290.0,112280.0,6.68423131]
[1757337105838,0.00046433,112290.0,112280.0,6.4687252]
[1757337106042,0.00046433,112290.0,112280.0,6.4509152]
[1757337106895,0.00046433,112290.0,112280.0,6.62904131]
[1757337108082,0.00046433,112290.0,112280.0,6.62704131]
[1757337108490,0.00046433,112290.0,112280.0,6.62904131]
[1757337108942,0.00046433,112290.0,112280.0,6.62604131]
[1757337109129,0.00046433,112290.0,112280.0,6.62404131]
[1757337109792,0.00046433,112290.0,112280.0,6.4469152]
[1757337110000,0.00046433,112290.0,112280.0,6.62504131]
[1757337110411,0.00046433,112290.0,112280.0,6.62604131]
[1757337113700,0.00046433,112290.0,112280.0,6.47184131]
[1757337113920,0.00046433,112290.0,112280.0,6.62600131]
[1757337114773,0.00046433,112290.0,112280.0,6.60506249]
[1757337115072,0.00046433,112290.0,112280.0,6.69436131]
[1757337118307,0.00046433,112290.0,112280.0,6.3620752]
[1757337118517,0.00046433,112290.0,112280.0,6.5161952]
[1757337118700,0.00046433,112290.0,112280.0,6.69432131]
[1757337119101,0.00046433,112290.0,112280.0,6.3620752]
[1757337119306,0.00046433,112290.0,112280.0,6.71213131]
[1757337119710,0.00046433,112290.0,112280.0,6.5340052]
[1757337119924,0.00046433,112290.0,112280.0,6.7476452]
[1757337120169,0.17857458,112290.0,112280.0,6.52258638]
[1757337120345,0.17857458,112290.0,112280.0,6.67670638]
[1757337120346,0.18384458,112290.0,112280.0,6.67670638]
[1757337122853,0.18179458,112290.0,112280.0,6.67670638]
[1757337123665,0.18179458,112290.0,112280.0,1.65889638]
[1757337124055,0.17857458,112290.0,112280.0,1.65889638]
[1757337124651,0.00046433,112290.0,112280.0,6.65889638]
[1757337124865,0.00046433,112290.0,112280.0,6.83702249]
[1757337125385,0.00046433,112290.0,112280.0,6.65889638]
[1757337125610,0.00046433,112290.0,112280.0,6.83702249]
[1757337126218,0.00046433,112290.0,112280.0,6.90796131]
[1757337127077,0.00046433,112290.0,112280.0,6.98796131]
[1757337129378,0.00046433,112290.0,112280.0,7.02657131]
[1757337132518,0.00046433,112290.0,112280.0,7.02653131]
[1757337133707,0.00046433,112290.0,112280.0,7.04434131]
[1757337134049,0.00046433,112290.0,112280.0,6.85165131]
[1757337134254,0.00046433,112290.0,112280.0,7.00569131]
[1757337137308,0.00046433,112290.0,112280.0,6.8275652]
[1757337137735,0.17857458,112290.0,112280.0,6.8275652]
[1757337137946,0.00046433,112290.0,112280.0,6.8275652]
[1757337138384,0.00046433,112290.0,112280.0,6.6735252]
[1757337138600,0.17857458,112290.0,112280.0,6.8275652]
[1757337138814,0.17857458,112290.0,112280.0,6.6735252]
[1757337139022,0.17857458,112290.0,112280.0,6.8275652]
[1757337139251,0.17857458,112290.0,112280.0,6.6735252]
[1757337139435,0.00046433,112290.0,112280.0,6.8275652]
[1757337139728,0.00046433,112290.0,112280.0,6.6735252]
[1757337139965,0.00046433,112290.0,112280.0,6.8275652]
[1757337140181,0.00046433,112290.0,112280.0,7.00569131]
[1757337145671,0.00046433,112290.0,112280.0,6.8275652]
[1757337145818,0.00046433,112290.0,112280.0,7.00569131]
[1757337146017,0.17857458,112290.0,112280.0,6.8275652]
[1757337146283,0.00046433,112290.0,112280.0,6.8275652]
[1757337146487,0.17857458,112290.0,112280.0,6.6735252]
[1757337146714,0.18370458,112290.0,112280.0,6.8096752]
[1757337146927,0.00364433,112290.0,112280.0,6.8096752]
[1757337147158,0.18175458,112290.0,112280.0,6.8096752]
[1757337147364,0.00364433,112290.0,112280.0,6.8096752]
[1757337147583,0.00364433,112290.0,112280.0,6.98780131]
[1757337148924,0.00046433,112290.0,112280.0,6.98780131]
[1757337150542,6.433e-05,112290.0,112280.0,6.98780131]
[1757337155667,0.18330458,112290.0,112280.0,1.53869638]
[1757337156069,0.18135458,112290.0,112280.0,1.53869638]
[1757337156278,0.18330458,112290.0,112280.0,1.53869638]
[1757337160231,0.18135458,112290.0,112280.0,1.53869638]
[1757337160537,0.17817458,112290.0,112280.0,1.53869638]
[1757337160750,0.17817458,112290.0,112280.0,1.49882279]
[1757337161469,6.433e-05,112290.0,112280.0,6.74788772]
[1757337162119,6.433e-05,112290.0,112280.0,6.76569772]
[1757337163657,6.433e-05,112290.0,112280.0,6.74788772]
[1757337163859,6.433e-05,112290.0,112280.0,6.74688772]
[1757337164271,6.433e-05,112290.0,112280.0,6.74788772]
[1757337165016,6.433e-05,112290.0,112280.0,6.74820772]
[1757337166010,6.433e-05,112290.0,112280.0,6.78798112]
[1757337172831,6.433e-05,112290.0,112280.0,6.52478112]
[1757337173529,6.433e-05,112290.0,112280.0,6.76140112]
[1757337173954,2.433e-05,112290.0,112280.0,6.76140112]
[1757337175487,2.433e-05,112290.0,112280.0,6.76796112]
[1757337175701,2.433e-05,112290.0,112280.0,6.60716112]
[1757337175923,2.433e-05,112290.0,112280.0,6.76816112]
[1757337179718,0.19894342,112310.0,112300.0,0.62093882]
[1757337179941,0.19894342,112310.0,112300.0,6.05187477]
[1757337180183,0.19894342,112310.0,112300.0,5.87378038]
[1757337180395,0.19894342,112310.0,112300.0,0.24204156]
[1757337180396,0.74158331,112310.0,112300.0,0.24204156]
[1757337180612,0.74158331,112310.0,112300.0,0.76951599]
[1757337180817,0.38198195,112310.0,112300.0,0.76951599]
[1757337181714,0.74158331,112310.0,112300.0,0.26875599]
[1757337181928,0.38198195,112310.0,112300.0,0.33768]
[1757337182143,0.74158331,112310.0,112300.0,0.31096557]
[1757337182379,0.38198195,112310.0,112300.0,0.31096557]
[1757337182595,0.74158331,112310.0,112300.0,0.31096557]
[1757337182806,0.38198195,112310.0,112300.0,0.31096557]
[1757337183251,0.74158331,112310.0,112300.0,0.31096557]
[1757337183704,0.38198195,112310.0,112300.0,0.31096557]
[1757337183939,0.37702195,112310.0,112300.0,0.31096557]
[1757337184364,0.37702195,112310.0,112300.0,0.85096557]
[1757337185004,0.38103195,112310.0,112300.0,0.85096557]
[1757337185444,0.74063331,112310.0,112300.0,0.85096557]
[1757337185648,0.74063331,112310.0,112300.0,0.94288156]
[1757337185649,0.74258331,112310.0,112300.0,0.94288156]
[1757337186062,0.38298195,112310.0,112300.0,0.94288156]
[1757337186282,0.74258331,112310.0,112300.0,0.94288156]
[1757337186498,0.38103195,112310.0,112300.0,0.94288156]
[1757337186704,0.20295342,112310.0,112300.0,1.12097595]
[1757337186913,0.19994342,112310.0,112300.0,1.12097595]
[1757337187532,0.37702195,112310.0,112300.0,0.94288156]
[1757337187963,0.73662331,112310.0,112300.0,0.94288156]
[1757337188392,0.73963331,112310.0,112300.0,0.94288156]
[1757337189055,0.38198195,112310.0,112300.0,0.94288156]
[1757337189258,0.74158331,112310.0,112300.0,1.02288156]
[1757337189472,0.38003195,112310.0,112300.0,1.02288156]
[1757337189896,0.19894342,112310.0,112300.0,1.20097595]
[1757337190530,0.19894342,112310.0,112300.0,1.22769088]
[1757337191565,0.19894342,112310.0,112300.0,1.49089088]
[1757337191975,0.19894342,112310.0,112300.0,1.55925088]
[1757337193147,0.19894342,112310.0,112300.0,6.6301897]
[1757337203001,0.19894342,112310.0,112300.0,6.6321897]
[1757337205656,0.19894342,112310.0,112300.0,6.6332297]
[1757337206276,0.19894342,112310.0,112300.0,6.8468297]
[1757337207308,0.20215342,112310.0,112300.0,6.8467497]
[1757337208494,0.19894342,112310.0,112300.0,6.8467497]
[1757337208725,0.56381478,112310.0,112300.0,6.8467497]
[1757337208944,0.20421342,112310.0,112300.0,6.8467497]
[1757337209124,0.19894342,112310.0,112300.0,6.8467497]
[1757337215873,0.20215342,112310.0,112300.0,6.8467497]
[1757337216538,0.20215342,112310.0,112300.0,6.8480697]
[1757337216950,0.19894342,112310.0,112300.0,6.8480697]
[1757337217653,0.14189966,112310.0,112300.0,6.8480697]
[1757337218121,0.14510966,112310.0,112300.0,6.8480697]
[1757337218781,0.14189966,112310.0,112300.0,6.8480697]
[1757337220021,0.14510966,112310.0,112300.0,6.8480697]
[1757337220608,0.14189966,112310.0,112300.0,6.8480697]
[1757337225363,0.14510966,112310.0,112300.0,6.8480697]
[1757337225550,0.14189966,112310.0,112300.0,6.8480697]
[1757337225712,0.14189966,112310.0,112300.0,6.6849497]
[1757337225938,0.14189966,112310.0,112300.0,6.8475097]
[1757337226321,0.14510966,112310.0,112300.0,6.8475097]
[1757337226805,0.14189966,112310.0,112300.0,6.8475097]
[1757337227787,0.10378771,112310.0,112300.0,6.8475097]
[1757337228869,0.10378771,112310.0,112300.0,6.8653197]
[1757337229406,0.64665924,112310.0,112300.0,1.45372649]
[1757337229642,0.64665924,112310.0,112300.0,1.07644649]
[1757337229892,0.64665924,112310.0,112300.0,1.03192156]
[1757337230871,0.64665924,112310.0,112300.0,1.02992156]
[1757337231388,0.64665924,112310.0,112300.0,0.86820156]
[1757337231602,0.64665924,112310.0,112300.0,1.03092156]
[1757337233024,0.28713624,112310.0,112300.0,1.03092156]
[1757337233251,0.64665924,112310.0,112300.0,1.03092156]
[1757337237790,0.28713624,112310.0,112300.0,1.03092156]
[1757337238504,0.64665924,112310.0,112300.0,1.03092156]
[1757337239661,0.28713624,112310.0,112300.0,1.03092156]
[1757337239839,0.64665924,112310.0,112300.0,1.03092156]
[1757337240713,0.28713624,112310.0,112300.0,1.03092156]
[1757337241128,0.64665924,112310.0,112300.0,1.03092156]
[1757337241857,0.28713624,112310.0,112300.0,1.03092156]
[1757337242311,0.64665924,112310.0,112300.0,1.03092156]
[1757337242739,0.28713624,112310.0,112300.0,1.03092156]
[1757337242949,0.64665924,112310.0,112300.0,1.03092156]
[1757337243544,0.28713624,112310.0,112300.0,1.03092156]
[1757337243751,0.64665924,112310.0,112300.0,1.03092156]
[1757337244369,0.28713624,112310.0,112300.0,1.03092156]
[1757337244508,0.64665924,112310.0,112300.0,1.03092156]
[1757337246065,0.28713624,112310.0,112300.0,1.03092156]
[1757337246366,0.64665924,112310.0,112300.0,1.03092156]